[Event "Titled Tuesday Blitz April 25 Early 2023"]
[White "Wagner, Dennis"]
[Black "Dixit, Nikhil"]
[WhiteFideId "24650684"]
[BlackFideId "5059534"]
[WhiteElo "2470"]
[BlackElo "2207"]
[Result "1/2-1/2"]
[Round "09"]
[TimeControl "180+2"]
[Date "2023.04.25"]
[WhiteClock "0:00:11"]
[BlackClock "0:00:43"]

1. d4 {[%clk 0:03:00]}  Nf6 {[%clk 0:02:58]} 2. Nf3 {[%clk 0:03:00]}  g6 {[%clk 0:02:55]} 3. g3 {[%clk 0:02:54]}  Bg7 {[%clk 0:02:43]} 4. Bg2 {[%clk 0:02:54]}  O-O {[%clk 0:02:44]} 5. O-O {[%clk 0:02:54]}  d6 {[%clk 0:02:44]} 6. Nc3 {[%clk 0:02:43]}  d5 {[%clk 0:02:42]} 7. Bf4 {[%clk 0:02:40]}  c6 {[%clk 0:02:40]} 8. a4 {[%clk 0:02:38]}  a5 {[%clk 0:02:39]} 9. Re1 {[%clk 0:02:37]}  Bf5 {[%clk 0:02:28]} 10. h3 {[%clk 0:02:35]}  Ne4 {[%clk 0:02:27]} 11. g4 {[%clk 0:02:33]}  Nxc3 {[%clk 0:02:26]} 12. bxc3 {[%clk 0:02:34]}  Be4 {[%clk 0:02:27]} 13. Rb1 {[%clk 0:02:32]}  b6 {[%clk 0:02:24]} 14. Bf1 {[%clk 0:02:20]}  Bxf3 {[%clk 0:02:19]} 15. exf3 {[%clk 0:02:20]}  e6 {[%clk 0:02:20]} 16. Rb3 {[%clk 0:02:07]}  Nd7 {[%clk 0:02:18]} 17. Bd6 {[%clk 0:02:06]}  Re8 {[%clk 0:02:16]} 18. f4 {[%clk 0:02:05]}  Bf8 {[%clk 0:02:15]} 19. Bxf8 {[%clk 0:02:01]}  Rxf8 {[%clk 0:02:16]} 20. Qf3 {[%clk 0:02:01]}  Qf6 {[%clk 0:02:13]} 21. Kg2 {[%clk 0:01:55]}  Kg7 {[%clk 0:02:11]} 22. Qg3 {[%clk 0:01:48]}  Rh8 {[%clk 0:02:08]} 23. h4 {[%clk 0:01:43]}  h5 {[%clk 0:02:06]} 24. g5 {[%clk 0:01:43]}  Qd8 {[%clk 0:02:02]} 25. f5 {[%clk 0:01:16]}  gxf5 {[%clk 0:01:46]} 26. Qd6 {[%clk 0:01:10]}  Rc8 {[%clk 0:01:33]} 27. c4 {[%clk 0:01:07]}  Qc7 {[%clk 0:01:26]} 28. Rxe6 {[%clk 0:00:46]}  fxe6 {[%clk 0:01:06]} 29. Qe7+ {[%clk 0:00:46]}  Kg8 {[%clk 0:01:01]} 30. Qxe6+ {[%clk 0:00:46]}  Kg7 {[%clk 0:01:01]} 31. Qe7+ {[%clk 0:00:43]}  Kg8 {[%clk 0:01:01]} 32. Qe6+ {[%clk 0:00:19]}  Kg7 {[%clk 0:00:44]} 33. Qe7+ {[%clk 0:00:11]}  Kg8 {[%clk 0:00:43]} 34. Qe6+ {[%clk 0:00:11]} 1/2-1/2


[Site "https://www.chess.com"]

[Event "Titled Tuesday Blitz April 25 Early 2023"]
[White "Kuzmin, Roman"]
[Black "Prohaszka, Peter"]
[WhiteFideId "44134932"]
[BlackFideId "726265"]
[WhiteElo "2192"]
[BlackElo "2626"]
[Result "0-1"]
[Round "09"]
[TimeControl "180+2"]
[Date "2023.04.25"]
[WhiteClock "0:00:01"]
[BlackClock "0:00:26"]

1. e4 {[%clk 0:03:00]}  c6 {[%clk 0:02:41]} 2. d4 {[%clk 0:02:58]}  d5 {[%clk 0:02:42]} 3. Nc3 {[%clk 0:02:58]}  dxe4 {[%clk 0:02:42]} 4. Nxe4 {[%clk 0:02:59]}  Nf6 {[%clk 0:02:42]} 5. Nxf6+ {[%clk 0:02:59]}  exf6 {[%clk 0:02:43]} 6. c3 {[%clk 0:03:00]}  Bd6 {[%clk 0:02:43]} 7. Bd3 {[%clk 0:02:59]}  O-O {[%clk 0:02:44]} 8. Qc2 {[%clk 0:02:59]}  Re8+ {[%clk 0:02:45]} 9. Ne2 {[%clk 0:03:00]}  h5 {[%clk 0:02:46]} 10. O-O {[%clk 0:02:59]}  h4 {[%clk 0:02:46]} 11. Bf4 {[%clk 0:03:00]}  Na6 {[%clk 0:02:30]} 12. h3 {[%clk 0:02:47]}  Nc7 {[%clk 0:02:29]} 13. Bxd6 {[%clk 0:02:40]}  Qxd6 {[%clk 0:02:28]} 14. Rfe1 {[%clk 0:02:35]}  Nd5 {[%clk 0:02:18]} 15. Rad1 {[%clk 0:02:32]}  Bd7 {[%clk 0:02:13]} 16. a3 {[%clk 0:02:32]}  Ne7 {[%clk 0:01:56]} 17. c4 {[%clk 0:02:10]}  g6 {[%clk 0:01:56]} 18. Qd2 {[%clk 0:02:03]}  Kg7 {[%clk 0:01:52]} 19. Qf4 {[%clk 0:02:02]}  Qxf4 {[%clk 0:01:49]} 20. Nxf4 {[%clk 0:02:03]}  Rad8 {[%clk 0:01:34]} 21. d5 {[%clk 0:01:43]}  cxd5 {[%clk 0:01:25]} 22. cxd5 {[%clk 0:01:22]}  Nc8 {[%clk 0:01:25]} 23. Rxe8 {[%clk 0:01:14]}  Bxe8 {[%clk 0:01:26]} 24. Kf1 {[%clk 0:01:03]}  Bd7 {[%clk 0:01:14]} 25. Rc1 {[%clk 0:01:00]}  Nd6 {[%clk 0:01:12]} 26. Rc7 {[%clk 0:00:57]}  f5 {[%clk 0:00:53]} 27. Ne6+ {[%clk 0:00:25]}  Bxe6 {[%clk 0:00:53]} 28. dxe6 {[%clk 0:00:26]}  Kf6 {[%clk 0:00:53]} 29. exf7 {[%clk 0:00:24]}  Nxf7 {[%clk 0:00:54]} 30. Ke2 {[%clk 0:00:21]}  Nd6 {[%clk 0:00:48]} 31. Rh7 {[%clk 0:00:17]}  g5 {[%clk 0:00:43]} 32. f4 {[%clk 0:00:17]}  gxf4 {[%clk 0:00:39]} 33. Rxh4 {[%clk 0:00:17]}  Ke5 {[%clk 0:00:40]} 34. Rh7 {[%clk 0:00:16]}  Re8 {[%clk 0:00:37]} 35. Kf3 {[%clk 0:00:15]}  Rg8 {[%clk 0:00:32]} 36. Re7+ {[%clk 0:00:08]}  Kf6 {[%clk 0:00:33]} 37. Rd7 {[%clk 0:00:02]}  Rg3+ {[%clk 0:00:32]} 38. Ke2 {[%clk 0:00:03]}  Ke6 {[%clk 0:00:31]} 39. Rd8 {[%clk 0:00:02]}  Rxg2+ {[%clk 0:00:29]} 40. Ke1 {[%clk 0:00:02]}  Rxb2 {[%clk 0:00:27]} 41. h4 {[%clk 0:00:03]}  Rh2 {[%clk 0:00:27]} 42. Rh8 {[%clk 0:00:02]}  f3 {[%clk 0:00:26]} 43. h5 {[%clk 0:00:02]}  Ne4 {[%clk 0:00:25]} 44. Re8+ {[%clk 0:00:01]}  Kd5 {[%clk 0:00:25]} 45. Bxe4+ {[%clk 0:00:01]}  fxe4 {[%clk 0:00:26]} 46. Rh8 {[%clk 0:00:01]}  e3 {[%clk 0:00:26]} 47. Rd8+ {[%clk 0:00:02]}  Kc4 {[%clk 0:00:26]} 48. Rc8+ {[%clk 0:00:01]}  Kb3 {[%clk 0:00:26]} 0-1


[Site "https://www.chess.com"]

[Event "Titled Tuesday Blitz April 25 Early 2023"]
[White "Nikologorskiy, Konstantin"]
[Black "Salman, Pavel"]
[WhiteFideId "24111708"]
[BlackFideId "24153753"]
[WhiteElo "2293"]
[BlackElo "2187"]
[Result "0-1"]
[Round "09"]
[TimeControl "180+2"]
[Date "2023.04.25"]
[WhiteClock "0:00:03"]
[BlackClock "0:00:11"]

1. d4 {[%clk 0:03:00]}  Nf6 {[%clk 0:02:56]} 2. c4 {[%clk 0:03:01]}  c5 {[%clk 0:02:56]} 3. d5 {[%clk 0:03:00]}  b5 {[%clk 0:02:55]} 4. cxb5 {[%clk 0:03:01]}  a6 {[%clk 0:02:55]} 5. b6 {[%clk 0:03:02]}  e6 {[%clk 0:02:55]} 6. Nc3 {[%clk 0:03:02]}  Nxd5 {[%clk 0:02:55]} 7. Nxd5 {[%clk 0:03:03]}  exd5 {[%clk 0:02:56]} 8. Qxd5 {[%clk 0:03:04]}  Nc6 {[%clk 0:02:57]} 9. Nf3 {[%clk 0:03:03]}  Rb8 {[%clk 0:02:57]} 10. Ne5 {[%clk 0:02:54]}  Qf6 {[%clk 0:02:46]} 11. Nxc6 {[%clk 0:02:54]}  dxc6 {[%clk 0:02:33]} 12. Qd3 {[%clk 0:02:41]}  Bd6 {[%clk 0:02:20]} 13. e4 {[%clk 0:02:35]}  O-O {[%clk 0:02:18]} 14. Be2 {[%clk 0:02:35]}  Rd8 {[%clk 0:02:13]} 15. Qc2 {[%clk 0:02:29]}  Qg6 {[%clk 0:02:10]} 16. Bf3 {[%clk 0:02:08]}  Rxb6 {[%clk 0:02:07]} 17. Be3 {[%clk 0:02:02]}  Bg4 {[%clk 0:01:56]} 18. O-O-O {[%clk 0:01:58]}  Bxf3 {[%clk 0:01:45]} 19. gxf3 {[%clk 0:01:59]}  Rdb8 {[%clk 0:01:45]} 20. b3 {[%clk 0:01:28]}  Qf6 {[%clk 0:01:44]} 21. Kb1 {[%clk 0:01:15]}  Qxf3 {[%clk 0:01:23]} 22. Rhg1 {[%clk 0:00:55]}  Be5 {[%clk 0:01:23]} 23. Rg5 {[%clk 0:00:35]}  Qf6 {[%clk 0:01:04]} 24. f4 {[%clk 0:00:22]}  Bd4 {[%clk 0:00:33]} 25. Rf5 {[%clk 0:00:15]}  Qe6 {[%clk 0:00:31]} 26. Bxd4 {[%clk 0:00:15]}  cxd4 {[%clk 0:00:30]} 27. Rxd4 {[%clk 0:00:15]}  g6 {[%clk 0:00:29]} 28. Re5 {[%clk 0:00:15]}  Qf6 {[%clk 0:00:28]} 29. Qd2 {[%clk 0:00:12]}  Kg7 {[%clk 0:00:26]} 30. Rc5 {[%clk 0:00:10]}  h5 {[%clk 0:00:18]} 31. Kc2 {[%clk 0:00:10]}  Re8 {[%clk 0:00:17]} 32. Qc3 {[%clk 0:00:06]}  Kh7 {[%clk 0:00:13]} 33. e5 {[%clk 0:00:05]}  Qf5+ {[%clk 0:00:13]} 34. Qd3 {[%clk 0:00:06]}  Qg4 {[%clk 0:00:13]} 35. Rd7 {[%clk 0:00:05]}  Kg8 {[%clk 0:00:11]} 36. Rc4 {[%clk 0:00:04]}  Rbb8 {[%clk 0:00:09]} 37. Rcd4 {[%clk 0:00:03]}  c5 {[%clk 0:00:09]} 38. Rc4 {[%clk 0:00:04]}  Rbc8 {[%clk 0:00:09]} 39. Qd5 {[%clk 0:00:03]}  Qf5+ {[%clk 0:00:09]} 40. Qe4 {[%clk 0:00:04]}  Qxd7 {[%clk 0:00:09]} 41. Rc3 {[%clk 0:00:03]}  Qf5 {[%clk 0:00:09]} 42. Qxf5 {[%clk 0:00:03]}  gxf5 {[%clk 0:00:10]} 43. Rg3+ {[%clk 0:00:04]}  Kf8 {[%clk 0:00:10]} 44. Kc3 {[%clk 0:00:04]}  Red8 {[%clk 0:00:10]} 45. Rg5 {[%clk 0:00:05]}  Ke7 {[%clk 0:00:11]} 46. Rxh5 {[%clk 0:00:04]}  Rh8 {[%clk 0:00:11]} 47. Rxf5 {[%clk 0:00:04]}  Rxh2 {[%clk 0:00:11]} 48. Rf6 {[%clk 0:00:05]}  Rxa2 {[%clk 0:00:11]} 49. Rb6 {[%clk 0:00:04]}  Rf2 {[%clk 0:00:10]} 50. Rb7+ {[%clk 0:00:02]}  Kf8 {[%clk 0:00:10]} 51. Rb6 {[%clk 0:00:02]}  Rxf4 {[%clk 0:00:10]} 52. Rxa6 {[%clk 0:00:03]}  Rf3+ {[%clk 0:00:10]} 53. Kc4 {[%clk 0:00:03]}  Re3 {[%clk 0:00:10]} 54. Kd5 {[%clk 0:00:02]}  Rd8+ {[%clk 0:00:10]} 55. Kxc5 {[%clk 0:00:02]}  Rxe5+ {[%clk 0:00:10]} 56. Kc4 {[%clk 0:00:03]}  Rc8+ {[%clk 0:00:10]} 57. Kd4 {[%clk 0:00:03]}  Rb5 {[%clk 0:00:10]} 58. Ra3 {[%clk 0:00:03]}  Rcb8 {[%clk 0:00:10]} 59. Kc4 {[%clk 0:00:03]}  Rb4+ {[%clk 0:00:10]} 60. Kc3 {[%clk 0:00:03]}  Ke7 {[%clk 0:00:10]} 61. Ra7+ {[%clk 0:00:03]}  R8b7 {[%clk 0:00:11]} 62. Ra3 {[%clk 0:00:03]}  f5 {[%clk 0:00:11]} 63. Ra5 {[%clk 0:00:02]}  Rxb3+ {[%clk 0:00:11]} 64. Kd4 {[%clk 0:00:02]}  R3b5 {[%clk 0:00:11]} 65. Ra8 {[%clk 0:00:01]}  Kf6 {[%clk 0:00:11]} 66. Ke3 {[%clk 0:00:02]}  Rb3+ {[%clk 0:00:10]} 67. Kd4 {[%clk 0:00:01]}  Rd7+ {[%clk 0:00:09]} 68. Kc5 {[%clk 0:00:02]}  Rbd3 {[%clk 0:00:10]} 69. Kc4 {[%clk 0:00:02]}  R3d4+ {[%clk 0:00:10]} 70. Kc5 {[%clk 0:00:03]}  Re4 {[%clk 0:00:10]} 71. Kc6 {[%clk 0:00:03]}  Rde7 {[%clk 0:00:10]} 72. Kd6 {[%clk 0:00:04]}  Kg5 {[%clk 0:00:10]} 73. Kd5 {[%clk 0:00:04]}  Kf4 {[%clk 0:00:11]} 74. Rh8 {[%clk 0:00:04]}  Rd7+ {[%clk 0:00:11]} 75. Kc5 {[%clk 0:00:04]}  Rd1 {[%clk 0:00:12]} 76. Rh4+ {[%clk 0:00:04]}  Ke3 {[%clk 0:00:12]} 77. Rh3+ {[%clk 0:00:05]}  Ke2 {[%clk 0:00:12]} 78. Rh2+ {[%clk 0:00:05]}  Kd3 {[%clk 0:00:12]} 79. Rh3+ {[%clk 0:00:06]}  Re3 {[%clk 0:00:13]} 80. Rh4 {[%clk 0:00:06]}  Rf1 {[%clk 0:00:10]} 81. Rd4+ {[%clk 0:00:05]}  Ke2 {[%clk 0:00:11]} 82. Rh4 {[%clk 0:00:05]}  f4 {[%clk 0:00:11]} 83. Kd4 {[%clk 0:00:05]}  f3 {[%clk 0:00:10]} 84. Rh8 {[%clk 0:00:05]}  Rd1+ {[%clk 0:00:10]} 85. Kc4 {[%clk 0:00:05]}  f2 {[%clk 0:00:11]} 86. Rh2 {[%clk 0:00:04]}  Ke1 {[%clk 0:00:11]} 87. Kb4 {[%clk 0:00:02]}  f1=Q {[%clk 0:00:11]} 88. Rc2 {[%clk 0:00:03]}  Rb1+ {[%clk 0:00:11]} 89. Ka4 {[%clk 0:00:03]}  Qb5# {[%clk 0:00:11]} 0-1


[Site "https://www.chess.com"]

[Event "Titled Tuesday Blitz April 25 Early 2023"]
[White "Akylbek2021"]
[Black "Mamedov, Edgar"]
[BlackFideId "13739980"]
[WhiteElo "2491"]
[BlackElo "2330"]
[Result "0-1"]
[Round "09"]
[TimeControl "180+2"]
[Date "2023.04.25"]
[WhiteClock "0:00:04"]
[BlackClock "0:00:05"]

1. Nf3 {[%clk 0:02:54]}  d5 {[%clk 0:02:59]} 2. g3 {[%clk 0:02:54]}  c6 {[%clk 0:02:57]} 3. Bg2 {[%clk 0:02:54]}  Nf6 {[%clk 0:02:56]} 4. O-O {[%clk 0:02:55]}  Bf5 {[%clk 0:02:53]} 5. d3 {[%clk 0:02:54]}  e6 {[%clk 0:02:51]} 6. Nbd2 {[%clk 0:02:49]}  h6 {[%clk 0:02:50]} 7. b3 {[%clk 0:02:45]}  Nbd7 {[%clk 0:02:48]} 8. Bb2 {[%clk 0:02:45]}  a5 {[%clk 0:02:48]} 9. a3 {[%clk 0:02:42]}  Be7 {[%clk 0:02:48]} 10. c4 {[%clk 0:02:40]}  O-O {[%clk 0:02:46]} 11. Qc2 {[%clk 0:02:34]}  Nc5 {[%clk 0:02:43]} 12. Rfe1 {[%clk 0:02:18]}  Bh7 {[%clk 0:02:37]} 13. Ne5 {[%clk 0:02:14]}  Nfd7 {[%clk 0:02:33]} 14. Nxd7 {[%clk 0:02:10]}  Qxd7 {[%clk 0:02:33]} 15. Rad1 {[%clk 0:02:01]}  b5 {[%clk 0:02:16]} 16. e4 {[%clk 0:01:46]}  dxc4 {[%clk 0:02:13]} 17. dxc4 {[%clk 0:01:43]}  Qd3 {[%clk 0:02:13]} 18. Rc1 {[%clk 0:01:29]}  Qxc2 {[%clk 0:02:09]} 19. Rxc2 {[%clk 0:01:30]}  Nd3 {[%clk 0:02:10]} 20. Rd1 {[%clk 0:01:18]}  Nxb2 {[%clk 0:02:05]} 21. Rxb2 {[%clk 0:01:16]}  Bxa3 {[%clk 0:02:05]} 22. Rc2 {[%clk 0:01:12]}  Rfd8 {[%clk 0:01:59]} 23. Ra1 {[%clk 0:00:58]}  Bb4 {[%clk 0:01:57]} 24. Nf1 {[%clk 0:00:58]}  a4 {[%clk 0:01:45]} 25. cxb5 {[%clk 0:00:42]}  axb3 {[%clk 0:01:39]} 26. Rxa8 {[%clk 0:00:41]}  Rxa8 {[%clk 0:01:14]} 27. Rb2 {[%clk 0:00:40]}  cxb5 {[%clk 0:01:11]} 28. Rxb3 {[%clk 0:00:41]}  Ra4 {[%clk 0:01:10]} 29. Ne3 {[%clk 0:00:30]}  Bf8 {[%clk 0:00:34]} 30. Rxb5 {[%clk 0:00:26]}  Bxe4 {[%clk 0:00:34]} 31. Bxe4 {[%clk 0:00:25]}  Rxe4 {[%clk 0:00:35]} 32. Kg2 {[%clk 0:00:23]}  g5 {[%clk 0:00:34]} 33. Kf3 {[%clk 0:00:20]}  Ra4 {[%clk 0:00:34]} 34. Ng4 {[%clk 0:00:19]}  Bg7 {[%clk 0:00:26]} 35. Rb8+ {[%clk 0:00:19]}  Kh7 {[%clk 0:00:25]} 36. Rb7 {[%clk 0:00:19]}  Kg6 {[%clk 0:00:25]} 37. Ne3 {[%clk 0:00:10]}  h5 {[%clk 0:00:22]} 38. h3 {[%clk 0:00:09]}  Ra2 {[%clk 0:00:22]} 39. g4 {[%clk 0:00:08]}  h4 {[%clk 0:00:20]} 40. Rb6 {[%clk 0:00:07]}  Bd4 {[%clk 0:00:19]} 41. Rb7 {[%clk 0:00:08]}  Bc3 {[%clk 0:00:19]} 42. Rc7 {[%clk 0:00:05]}  Be5 {[%clk 0:00:16]} 43. Rd7 {[%clk 0:00:05]}  Ra1 {[%clk 0:00:16]} 44. Nc4 {[%clk 0:00:05]}  Bf4 {[%clk 0:00:14]} 45. Ne3 {[%clk 0:00:04]}  Rh1 {[%clk 0:00:14]} 46. Kg2 {[%clk 0:00:02]}  Rh2+ {[%clk 0:00:14]} 47. Kf3 {[%clk 0:00:03]}  Bxe3 {[%clk 0:00:11]} 48. Kxe3 {[%clk 0:00:02]}  Rxh3+ {[%clk 0:00:11]} 49. f3 {[%clk 0:00:02]}  Rh1 {[%clk 0:00:11]} 50. Rd2 {[%clk 0:00:03]}  Re1+ {[%clk 0:00:10]} 51. Kf2 {[%clk 0:00:03]}  Ra1 {[%clk 0:00:10]} 52. Kg2 {[%clk 0:00:03]}  f5 {[%clk 0:00:09]} 53. Rd6 {[%clk 0:00:02]}  Kf6 {[%clk 0:00:09]} 54. Rc6 {[%clk 0:00:02]}  fxg4 {[%clk 0:00:09]} 55. fxg4 {[%clk 0:00:02]}  Ra4 {[%clk 0:00:09]} 56. Kh3 {[%clk 0:00:03]}  Ra3+ {[%clk 0:00:08]} 57. Kh2 {[%clk 0:00:03]}  Rg3 {[%clk 0:00:08]} 58. Rc4 {[%clk 0:00:04]}  Rf3 {[%clk 0:00:08]} 59. Rc2 {[%clk 0:00:02]}  Ke5 {[%clk 0:00:06]} 60. Re2+ {[%clk 0:00:02]}  Kf4 {[%clk 0:00:05]} 61. Rxe6 {[%clk 0:00:03]}  Kxg4 {[%clk 0:00:05]} 62. Re4+ {[%clk 0:00:03]}  Rf4 {[%clk 0:00:05]} 63. Re2 {[%clk 0:00:04]}  Kh5 {[%clk 0:00:06]} 64. Kh3 {[%clk 0:00:04]}  Rf3+ {[%clk 0:00:06]} 65. Kg2 {[%clk 0:00:04]}  Rg3+ {[%clk 0:00:06]} 66. Kh2 {[%clk 0:00:05]}  Ra3 {[%clk 0:00:06]} 67. Rf2 {[%clk 0:00:04]}  g4 {[%clk 0:00:04]} 68. Rf5+ {[%clk 0:00:04]}  Kg6 {[%clk 0:00:04]} 69. Rb5 {[%clk 0:00:05]}  Ra2+ {[%clk 0:00:04]} 70. Kg1 {[%clk 0:00:05]}  Re2 {[%clk 0:00:04]} 71. Rb4 {[%clk 0:00:05]}  Kf5 {[%clk 0:00:04]} 72. Rb5+ {[%clk 0:00:06]}  Kf4 {[%clk 0:00:04]} 73. Rb4+ {[%clk 0:00:05]}  Kf3 {[%clk 0:00:05]} 74. Rb3+ {[%clk 0:00:06]}  Re3 {[%clk 0:00:05]} 75. Rb1 {[%clk 0:00:05]}  g3 {[%clk 0:00:05]} 76. Rf1+ {[%clk 0:00:05]}  Kg4 {[%clk 0:00:05]} 77. Rb1 {[%clk 0:00:05]}  h3 {[%clk 0:00:05]} 78. Rb4+ {[%clk 0:00:06]}  Kf3 {[%clk 0:00:05]} 79. Rb1 {[%clk 0:00:06]}  Ke2 {[%clk 0:00:05]} 80. Rb2+ {[%clk 0:00:05]}  Kd3 {[%clk 0:00:04]} 81. Rb3+ {[%clk 0:00:06]}  Kd2 {[%clk 0:00:05]} 82. Rb2+ {[%clk 0:00:04]}  Kc1 {[%clk 0:00:05]} 0-1


[Site "https://www.chess.com"]

[Event "Titled Tuesday Blitz April 25 Early 2023"]
[White "Sielecki, Christof"]
[Black "Santos Flores, Alberto"]
[WhiteFideId "4620437"]
[BlackFideId "3601234"]
[WhiteElo "2443"]
[BlackElo "2235"]
[Result "0-1"]
[Round "09"]
[TimeControl "180+2"]
[Date "2023.04.25"]
[WhiteClock "0:00:01"]
[BlackClock "0:00:26"]

1. e4 {[%clk 0:03:00]}  c5 {[%clk 0:02:45]} 2. Nf3 {[%clk 0:03:00]}  Nc6 {[%clk 0:02:45]} 3. Bb5 {[%clk 0:03:00]}  g6 {[%clk 0:02:45]} 4. O-O {[%clk 0:02:59]}  Bg7 {[%clk 0:02:45]} 5. Re1 {[%clk 0:03:00]}  Nf6 {[%clk 0:02:45]} 6. c3 {[%clk 0:02:59]}  O-O {[%clk 0:02:45]} 7. d4 {[%clk 0:02:59]}  cxd4 {[%clk 0:02:46]} 8. cxd4 {[%clk 0:02:58]}  d5 {[%clk 0:02:46]} 9. e5 {[%clk 0:02:59]}  Ne4 {[%clk 0:02:47]} 10. Be3 {[%clk 0:02:58]}  Bg4 {[%clk 0:02:47]} 11. h3 {[%clk 0:02:57]}  Bxf3 {[%clk 0:02:46]} 12. gxf3 {[%clk 0:02:57]}  Qd7 {[%clk 0:02:29]} 13. fxe4 {[%clk 0:02:51]}  Qxh3 {[%clk 0:02:29]} 14. exd5 {[%clk 0:02:33]}  Nxe5 {[%clk 0:02:29]} 15. dxe5 {[%clk 0:01:41]}  Bxe5 {[%clk 0:02:30]} 16. f4 {[%clk 0:01:10]}  Qg3+ {[%clk 0:02:28]} 17. Kf1 {[%clk 0:01:09]}  Bxb2 {[%clk 0:02:07]} 18. Nd2 {[%clk 0:01:07]}  Bxa1 {[%clk 0:02:05]} 19. Qxa1 {[%clk 0:01:04]}  Rac8 {[%clk 0:02:03]} 20. Bd3 {[%clk 0:01:02]}  Rfd8 {[%clk 0:02:00]} 21. Be4 {[%clk 0:00:56]}  f5 {[%clk 0:01:52]} 22. Bf3 {[%clk 0:00:52]}  Rc2 {[%clk 0:01:50]} 23. Qe5 {[%clk 0:00:49]}  Rxd2 {[%clk 0:01:44]} 24. Bxd2 {[%clk 0:00:25]}  Qxf3+ {[%clk 0:01:44]} 25. Kg1 {[%clk 0:00:25]}  Qxd5 {[%clk 0:01:33]} 26. Bc3 {[%clk 0:00:17]}  Qxe5 {[%clk 0:01:31]} 27. Bxe5 {[%clk 0:00:18]}  Kf7 {[%clk 0:01:29]} 28. Rc1 {[%clk 0:00:18]}  Rd2 {[%clk 0:01:07]} 29. a4 {[%clk 0:00:18]}  g5 {[%clk 0:00:57]} 30. fxg5 {[%clk 0:00:17]}  Rd5 {[%clk 0:00:55]} 31. Bb8 {[%clk 0:00:16]}  Ra5 {[%clk 0:00:54]} 32. Rc7 {[%clk 0:00:12]}  Rxa4 {[%clk 0:00:53]} 33. Rxb7 {[%clk 0:00:13]}  a5 {[%clk 0:00:48]} 34. Bd6 {[%clk 0:00:13]}  Re4 {[%clk 0:00:48]} 35. Bc5 {[%clk 0:00:08]}  a4 {[%clk 0:00:44]} 36. Kf2 {[%clk 0:00:09]}  Kg6 {[%clk 0:00:31]} 37. Bxe7 {[%clk 0:00:05]}  a3 {[%clk 0:00:28]} 38. Bxa3 {[%clk 0:00:04]}  Kxg5 {[%clk 0:00:28]} 39. Bc1+ {[%clk 0:00:04]}  Kg6 {[%clk 0:00:26]} 40. Rb6+ {[%clk 0:00:01]}  Kf7 {[%clk 0:00:26]} 0-1


[Site "https://www.chess.com"]

[Event "Titled Tuesday Blitz April 25 Early 2023"]
[White "Staudenhocker43"]
[Black "Schnaider, Ilan"]
[BlackFideId "169013"]
[WhiteElo "2484"]
[BlackElo "2224"]
[Result "1-0"]
[Round "09"]
[TimeControl "180+2"]
[Date "2023.04.25"]
[WhiteClock "0:00:37"]
[BlackClock "0:00:01"]

1. d4 {[%clk 0:03:00]}  Nf6 {[%clk 0:02:59]} 2. c4 {[%clk 0:03:01]}  g6 {[%clk 0:03:00]} 3. Nc3 {[%clk 0:03:00]}  d5 {[%clk 0:03:00]} 4. Nf3 {[%clk 0:03:00]}  Bg7 {[%clk 0:03:00]} 5. Qb3 {[%clk 0:03:01]}  dxc4 {[%clk 0:03:00]} 6. Qxc4 {[%clk 0:03:02]}  O-O {[%clk 0:03:01]} 7. e4 {[%clk 0:03:02]}  Nc6 {[%clk 0:03:01]} 8. Be2 {[%clk 0:03:02]}  Bg4 {[%clk 0:02:55]} 9. Be3 {[%clk 0:03:02]}  e5 {[%clk 0:02:47]} 10. Nxe5 {[%clk 0:02:52]}  Bxe2 {[%clk 0:02:47]} 11. Kxe2 {[%clk 0:02:18]}  Nxe5 {[%clk 0:02:34]} 12. dxe5 {[%clk 0:02:19]}  Nd7 {[%clk 0:02:34]} 13. f4 {[%clk 0:02:12]}  Qh4 {[%clk 0:02:24]} 14. Qxc7 {[%clk 0:02:05]}  Rad8 {[%clk 0:02:14]} 15. Rad1 {[%clk 0:02:01]}  Bh6 {[%clk 0:01:59]} 16. g3 {[%clk 0:01:54]}  Qh3 {[%clk 0:01:44]} 17. Kf2 {[%clk 0:01:53]}  g5 {[%clk 0:01:01]} 18. f5 {[%clk 0:01:42]}  Nxe5 {[%clk 0:00:30]} 19. Qxe5 {[%clk 0:01:12]}  Rxd1 {[%clk 0:00:22]} 20. Nxd1 {[%clk 0:01:12]}  Rc8 {[%clk 0:00:22]} 21. Bd4 {[%clk 0:01:03]}  Rc2+ {[%clk 0:00:22]} 22. Ke1 {[%clk 0:01:03]}  Kf8 {[%clk 0:00:06]} 23. Qb8+ {[%clk 0:00:56]}  Ke7 {[%clk 0:00:06]} 24. Qxb7+ {[%clk 0:00:55]}  Kf8 {[%clk 0:00:04]} 25. Qa8+ {[%clk 0:00:53]}  Ke7 {[%clk 0:00:04]} 26. Qxa7+ {[%clk 0:00:53]}  Ke8 {[%clk 0:00:05]} 27. Qa4+ {[%clk 0:00:52]}  Rc6 {[%clk 0:00:05]} 28. Qxc6+ {[%clk 0:00:52]}  Kf8 {[%clk 0:00:05]} 29. Bc5+ {[%clk 0:00:47]}  Kg7 {[%clk 0:00:04]} 30. Bd4+ {[%clk 0:00:42]}  Kf8 {[%clk 0:00:04]} 31. Qd6+ {[%clk 0:00:41]}  Kg8 {[%clk 0:00:02]} 32. Qd8+ {[%clk 0:00:40]}  Bf8 {[%clk 0:00:02]} 33. Bc5 {[%clk 0:00:39]}  Kg7 {[%clk 0:00:01]} 34. Qxf8+ {[%clk 0:00:38]}  Kf6 {[%clk 0:00:01]} 35. Bd4# {[%clk 0:00:37]} 1-0


[Site "https://www.chess.com"]